bitfinex/quotes_BTCUSD_20250519
["timestamp","ask_amount","ask_price","bid_price","bid_amount"]
[1747615387513,1.42917888,105470.0,105460.0,0.02158321]
[1747615387760,2.12107702,105470.0,105460.0,0.02158321]
[1747615387995,0.61202903,105450.0,105440.0,0.002]
[1747615388226,0.61206861,105430.0,105420.0,0.00919149]
[1747615388450,1.61574327,105430.0,105420.0,0.00919149]
[1747615388682,1.72305267,105430.0,105420.0,0.00919149]
[1747615388900,6.8105145,105430.0,105420.0,0.00160679]
[1747615389126,0.74683984,105430.0,105420.0,0.00160679]
[1747615389339,1.4495032,105430.0,105420.0,0.00160679]
[1747615389561,1.4169032,105430.0,105420.0,0.00160679]
[1747615389775,1.3861032,105430.0,105420.0,0.00160679]
[1747615390457,0.2087082,105410.0,105400.0,0.002]
[1747615390662,0.93080023,105410.0,105400.0,0.002]
[1747615390871,0.93080023,105410.0,105360.0,0.2679542]
[1747615390872,0.01897964,105370.0,105360.0,0.14150147]
[1747615391084,0.26654937,105370.0,105360.0,0.16800471]
[1747615391302,0.47584698,105370.0,105360.0,0.18982536]
[1747615391744,0.26654973,105370.0,105360.0,0.22019611]
[1747615391956,0.26654973,105370.0,105360.0,0.23283909]
[1747615391957,0.27604,105370.0,105360.0,0.23283909]
[1747615392163,0.20880761,105360.0,105350.0,0.24768478]
[1747615392412,0.21880761,105360.0,105350.0,0.28364752]
[1747615392640,0.20931662,105360.0,105350.0,0.06532821]
[1747615392849,0.21931662,105360.0,105350.0,0.24768496]
[1747615393054,0.21931662,105360.0,105350.0,0.25717676]
[1747615393267,0.22880761,105360.0,105350.0,0.26666838]
[1747615393484,0.22880761,105360.0,105350.0,0.25717676]
[1747615393697,0.23812,105360.0,105350.0,0.37851854]
[1747615393933,0.26810108,105360.0,105350.0,0.43392683]
[1747615394148,0.27759198,105360.0,105350.0,0.44341836]
[1747615394367,0.26759189,105360.0,105350.0,0.44341836]
[1747615394583,0.23912,105360.0,105350.0,0.44341836]
[1747615394804,0.001,105360.0,105350.0,0.44341836]
[1747615395314,0.02098144,105360.0,105350.0,0.44541836]
[1747615395538,0.00058023,105370.0,105360.0,0.21829806]
[1747615395757,0.00058023,105370.0,105360.0,0.31560746]
[1747615396631,0.18768063,105390.0,105380.0,0.28619748]
[1747615396849,1.2053144,105410.0,105400.0,0.18975332]
[1747615397072,0.002,105410.0,105400.0,0.38346547]
[1747615397508,0.012,105410.0,105400.0,0.38346547]
[1747615397749,0.002,105410.0,105400.0,0.38346547]
[1747615397951,0.002,105410.0,105400.0,0.72360984]
[1747615398176,0.002,105410.0,105400.0,0.75001564]
[1747615399489,0.004,105410.0,105400.0,0.75801564]
[1747615399701,0.003,105410.0,105400.0,0.75601564]
[1747615399927,0.002,105430.0,105420.0,0.25481467]
[1747615400169,0.002,105430.0,105420.0,0.36502407]
[1747615400170,0.01148415,105430.0,105420.0,0.36502407]
[1747615400419,0.002,105430.0,105420.0,0.36502407]
[1747615401048,0.002,105430.0,105420.0,0.39144098]
[1747615401256,0.002,105430.0,105420.0,0.36502407]
[1747615401463,0.002,105430.0,105420.0,0.73344441]
[1747615401678,0.003,105430.0,105420.0,0.73544441]
[1747615401887,0.0031,105430.0,105420.0,0.73544441]
[1747615402314,0.0031,105430.0,105420.0,0.75902407]
[1747615406900,0.0031,105430.0,105420.0,0.78545119]
[1747615408034,0.0021,105430.0,105420.0,0.78145119]
[1747615408480,0.0031,105430.0,105420.0,0.78545119]
[1747615408704,0.002,105450.0,105440.0,0.24933243]
[1747615408928,0.002,105450.0,105440.0,0.71894183]
[1747615409174,0.002,105450.0,105440.0,0.74536296]
[1747615409589,0.002,105450.0,105440.0,0.79180089]
[1747615409807,0.0210612,105470.0,105460.0,0.23263191]
[1747615410037,0.0310612,105470.0,105460.0,0.32994131]
[1747615410269,0.0310612,105470.0,105460.0,0.36054131]
[1747615410270,0.0021,105470.0,105460.0,0.36054131]
[1747615410524,0.04054211,105470.0,105460.0,0.34157778]
[1747615410753,0.059505,105470.0,105460.0,0.33942348]
[1747615410978,0.05302364,105470.0,105460.0,0.34042312]
[1747615411200,0.05302364,105470.0,105460.0,0.33942312]
[1747615411667,0.0061,105470.0,105460.0,0.33942312]
[1747615411900,0.0061,105470.0,105460.0,0.74332312]
[1747615412126,0.0081,105470.0,105460.0,0.74332312]
[1747615413231,0.0021,105490.0,105480.0,0.21804973]
[1747615413447,0.0021,105490.0,105480.0,0.32989998]
[1747615413657,0.02157894,105490.0,105480.0,0.32989998]
[1747615413871,0.0121,105490.0,105480.0,0.32989998]
[1747615414326,0.03105779,105490.0,105480.0,0.32989998]
[1747615414536,0.01758082,105490.0,105480.0,0.32989998]
[1747615414707,0.02905967,105490.0,105480.0,0.32989998]
[1747615414923,0.02405967,105490.0,105480.0,0.32989998]
[1747615415288,0.01858082,105490.0,105480.0,0.32989998]
[1747615415704,0.02405976,105490.0,105480.0,0.32989998]
[1747615415909,0.00458082,105490.0,105480.0,0.32989998]
[1747615416106,0.00458082,105490.0,105480.0,0.73459998]
[1747615416556,0.00558082,105490.0,105480.0,0.73459998]
[1747615416957,0.0001,105500.0,105490.0,0.57256991]
[1747615417190,0.00957786,105500.0,105490.0,0.67002368]
[1747615417361,0.0001,105500.0,105490.0,0.71992368]
[1747615417699,0.0001,105500.0,105490.0,0.73342368]
[1747615418317,0.002,105510.0,105500.0,0.55800838]
[1747615418544,0.002,105510.0,105500.0,0.65531778]
[1747615419212,0.002,105510.0,105500.0,0.71881778]
[1747615419495,0.02147534,105530.0,105520.0,0.2309079]
[1747615419728,0.002,105530.0,105520.0,0.3282173]
[1747615419948,0.012,105550.0,105540.0,0.21792577]
[1747615420165,0.012,105550.0,105540.0,0.31523517]
[1747615420382,0.002,105550.0,105540.0,0.66977602]
[1747615420844,0.002,105550.0,105540.0,0.70227602]
[1747615421271,0.002,105550.0,105540.0,0.73282039]
[1747615421471,0.002,105550.0,105540.0,0.70242039]
[1747615422112,0.002,105550.0,105540.0,0.66992039]
[1747615422528,0.002,105550.0,105540.0,0.70161693]
[1747615423149,0.002,105550.0,105540.0,0.70361693]
[1747615423356,0.002,105550.0,105540.0,0.70261693]
[1747615423559,0.002,105550.0,105540.0,0.70461693]
[1747615423768,0.33698578,105550.0,105540.0,0.00314437]
[1747615424386,0.30588578,105550.0,105540.0,0.00314437]
[1747615424793,0.30588578,105550.0,105540.0,0.00214437]
[1747615424999,0.31635987,105550.0,105540.0,0.00014437]
[1747615425198,0.24100556,105550.0,105540.0,0.00014437]
[1747615425405,0.23153183,105550.0,105540.0,0.00014437]
[1747615425619,0.25335783,105550.0,105540.0,0.00014437]
[1747615426248,0.25335783,105550.0,105540.0,0.00114437]
[1747615428547,0.0131,105550.0,105540.0,0.28795538]
[1747615428714,0.03204701,105550.0,105540.0,0.31637954]
[1747615429092,0.04152092,105550.0,105540.0,0.31637972]
[1747615429313,0.26433156,105550.0,105540.0,0.00114437]
[1747615429520,0.26433156,105550.0,105540.0,0.01061945]
[1747615429848,0.26433156,105550.0,105540.0,0.00114437]
[1747615430529,0.2215312,105550.0,105540.0,0.20959569]
[1747615430758,0.23153156,105550.0,105540.0,0.00114437]
[1747615430966,0.27425765,105550.0,105540.0,0.00114437]
[1747615433292,0.33961205,105550.0,105540.0,0.00114437]
[1747615433571,1.03767077,105550.0,105540.0,0.00114437]
[1747615434240,0.67432145,105550.0,105540.0,0.00114437]
[1747615434456,0.67332145,105550.0,105540.0,0.00014437]
[1747615434673,0.67732145,105550.0,105540.0,0.00014437]
[1747615434881,1.04367077,105550.0,105540.0,0.00014437]
[1747615435311,1.03967077,105550.0,105540.0,0.00014437]
[1747615435519,1.47698017,105550.0,105540.0,0.00014437]
[1747615435735,1.37967077,105550.0,105540.0,0.00014437]
[1747615435945,1.38615172,105550.0,105540.0,0.00014437]
[1747615436166,0.20849063,105520.0,105510.0,0.00607248]
[1747615436382,0.74805063,105520.0,105510.0,0.00616127]
[1747615441834,0.75805063,105520.0,105510.0,8.879e-05]
[1747615442041,0.47825063,105520.0,105510.0,8.879e-05]
[1747615442259,0.71561063,105520.0,105510.0,8.879e-05]
[1747615442472,0.72561063,105520.0,105510.0,8.879e-05]
[1747615442696,0.45585063,105520.0,105510.0,0.18964428]
[1747615442921,0.44585063,105520.0,105510.0,0.18964428]
[1747615443149,0.44585063,105520.0,105510.0,8.879e-05]
[1747615443150,0.45589063,105520.0,105510.0,8.879e-05]
[1747615444689,0.20849063,105520.0,105510.0,0.19912187]
[1747615444905,0.46484356,105520.0,105510.0,0.20859937]
[1747615445109,0.22744356,105520.0,105510.0,0.20859937]
[1747615445333,0.01947615,105520.0,105510.0,0.29643127]
[1747615445485,0.03842926,105520.0,105510.0,0.31538582]
[1747615445966,0.04790604,105520.0,105510.0,0.31538582]
[1747615446163,0.23744356,105520.0,105510.0,0.30590868]
[1747615446465,0.23744428,105520.0,105510.0,0.30590868]
[1747615446745,0.01947615,105520.0,105510.0,0.33081677]
[1747615446881,0.02895257,105520.0,105510.0,0.34029391]
[1747615447093,0.01947615,105520.0,105510.0,0.36674816]
[1747615447285,0.03842917,105520.0,105510.0,0.36674816]
[1747615447485,0.23744347,105520.0,105510.0,0.33831647]
[1747615447733,0.23744338,105520.0,105510.0,0.34779361]
[1747615448454,0.02895257,105520.0,105510.0,0.34779361]
[1747615448695,0.04790586,105520.0,105510.0,0.34779361]
[1747615449107,0.01947615,105520.0,105510.0,0.34779361]
[1747615449308,0.01947624,105520.0,105510.0,0.34779361]
[1747615449487,0.01947615,105520.0,105510.0,0.34879361]
[1747615449817,0.04790559,105520.0,105510.0,0.35079361]
[1747615449936,0.02895248,105520.0,105510.0,0.35079361]
[1747615450130,0.01947615,105520.0,105510.0,0.36533446]
[1747615450377,0.01947615,105520.0,105510.0,0.39583446]
[1747615450593,0.01,105520.0,105510.0,0.39583446]
[1747615450811,0.42863517,105530.0,105520.0,0.21796687]
[1747615450965,0.66603517,105530.0,105520.0,0.31527627]
[1747615451180,0.25687526,105530.0,105520.0,0.34173052]
[1747615451392,0.22795538,105540.0,105530.0,0.19899535]
[1747615451570,0.45535538,105540.0,105530.0,0.29630475]
[1747615451770,0.44588075,105540.0,105530.0,0.30578036]
[1747615452026,0.44588075,105540.0,105530.0,0.28682896]
[1747615452232,0.44588075,105540.0,105530.0,0.10678537]
[1747615452478,0.20848075,105540.0,105530.0,0.10678537]
[1747615452837,0.19900585,105540.0,105530.0,0.0973094]
[1747615453039,0.20000585,105540.0,105530.0,0.10326294]
[1747615453217,0.44740585,105540.0,105530.0,0.13020025]
[1747615453423,0.43940585,105540.0,105530.0,0.13020025]
[1747615453851,0.43640585,105540.0,105530.0,0.13020025]
[1747615455491,0.21053093,105550.0,105540.0,0.20845132]
[1747615455646,0.01947445,105540.0,105530.0,0.35321144]
[1747615455851,0.21845132,105540.0,105530.0,0.34373654]
[1747615456059,0.28175132,105540.0,105530.0,0.03289085]
[1747615457065,0.28175132,105540.0,105530.0,0.00595354]
[1747615457489,0.51879132,105540.0,105530.0,0.00795354]
[1747615458086,0.51879132,105540.0,105530.0,0.002]
[1747615458463,0.18951956,105530.0,105520.0,0.01895347]
[1747615458665,0.20847087,105530.0,105520.0,0.29632372]
[1747615458968,0.19899544,105530.0,105520.0,0.3058005]
[1747615459172,0.19899544,105530.0,105520.0,0.32475379]
[1747615459374,0.19899544,105530.0,105520.0,0.31527719]
[1747615459730,0.19899544,105530.0,105520.0,0.31827719]
[1747615459934,0.19899544,105530.0,105520.0,0.35759496]
[1747615460580,0.19899544,105530.0,105520.0,0.34811845]
[1747615460753,0.19899544,105530.0,105520.0,0.35759496]
[1747615461691,0.19899544,105530.0,105520.0,0.33864176]
[1747615461847,0.01895158,105530.0,105520.0,0.33864165]
[1747615462045,0.01895158,105530.0,105520.0,0.3575944]
[1747615462251,0.02842755,105530.0,105520.0,0.3575944]
[1747615462449,0.01895158,105530.0,105520.0,0.3575944]
[1747615463131,0.02842755,105530.0,105520.0,0.34811816]
[1747615463308,0.0194749,105540.0,105530.0,0.21794631]
[1747615463530,0.0194749,105540.0,105530.0,0.21794648]
[1747615463531,0.00947463,105540.0,105530.0,0.21794648]
[1747615463685,0.50532782,105550.0,105540.0,0.20845114]
[1747615463969,0.7137592,105550.0,105540.0,0.19897651]
[1747615464168,0.01894917,105540.0,105530.0,0.35577991]
[1747615464373,0.02842398,105540.0,105530.0,0.30577991]
[1747615464606,0.22740085,105540.0,105530.0,0.30578054]
[1747615464779,0.03789924,105540.0,105530.0,0.31525606]
[1747615465000,0.69446289,105550.0,105530.0,0.3247314]
[1747615465217,0.01894989,105540.0,105530.0,0.33420666]
[1747615465391,0.01894989,105540.0,105530.0,0.33520666]
[1747615465624,0.01894935,105540.0,105530.0,0.33620666]
[1747615465834,0.21792595,105540.0,105530.0,0.31725606]
[1747615466057,0.22740103,105540.0,105530.0,0.30578054]
[1747615466266,0.02842434,105540.0,105530.0,0.31625606]
[1747615466480,0.02894881,105540.0,105530.0,0.3257314]
[1747615466682,0.03789852,105540.0,105530.0,0.3257314]
[1747615467087,0.22740085,105540.0,105530.0,0.31625606]
[1747615467295,0.03789924,105540.0,105530.0,0.3267314]
[1747615467697,0.01894935,105540.0,105530.0,0.3267314]
[1747615468105,0.02842425,105540.0,105530.0,0.3267314]
[1747615468314,0.03789924,105540.0,105530.0,0.3267314]
[1747615470105,0.03789924,105540.0,105530.0,0.66232041]
[1747615470106,0.01,105540.0,105530.0,0.66232041]
[1747615470334,0.43067211,105570.0,105560.0,0.20841163]
[1747615470525,0.07311624,105570.0,105560.0,0.19893889]
[1747615470724,0.02841831,105560.0,105550.0,0.20843102]
[1747615470927,0.22735765,105560.0,105550.0,0.30574096]
[1747615471170,0.22735765,105560.0,105550.0,0.0973094]
[1747615471171,0.20841208,105560.0,105550.0,0.0973094]
[1747615471385,0.20841208,105560.0,105550.0,0.30574114]
[1747615471583,0.20841208,105560.0,105550.0,0.31530384]
[1747615472392,0.21041208,105560.0,105550.0,0.30582993]
[1747615472548,0.23283898,105560.0,105550.0,0.10687237]
[1747615472752,0.23283898,105560.0,105550.0,0.09739819]
[1747615472955,0.23483898,105560.0,105550.0,0.29635593]
[1747615473153,0.2233657,105560.0,105550.0,0.10687237]
[1747615473359,0.2213657,105560.0,105550.0,0.31530411]
[1747615473566,0.2223657,105560.0,105550.0,0.32477802]
[1747615473804,0.2223657,105560.0,105550.0,0.31530411]
[1747615474282,0.1904657,105560.0,105550.0,0.31530411]
[1747615474485,0.1904657,105560.0,105550.0,0.12582046]
[1747615474682,0.1914657,105560.0,105550.0,0.10687237]
[1747615474882,0.1914657,105560.0,105550.0,0.11634646]
[1747615475078,0.1914657,105560.0,105550.0,0.31530411]
[1747615475290,0.1914657,105560.0,105550.0,8.879e-05]
[1747615475291,0.32962146,105560.0,105550.0,8.879e-05]
[1747615475488,0.5444159,105560.0,105550.0,8.879e-05]
[1747615475694,0.6417253,105560.0,105550.0,8.879e-05]
[1747615476113,0.64824185,105560.0,105550.0,8.879e-05]
[1747615476524,0.64724185,105560.0,105550.0,8.879e-05]
[1747615476746,0.64624185,105560.0,105550.0,8.879e-05]
[1747615477116,0.65024185,105560.0,105550.0,8.879e-05]
[1747615477784,1.05936185,105560.0,105550.0,8.879e-05]
[1747615478917,0.98400745,105560.0,105550.0,8.879e-05]
[1747615479554,0.98800745,105560.0,105550.0,8.879e-05]
[1747615479734,1.46124745,105560.0,105550.0,8.879e-05]
[1747615480730,1.24585165,105560.0,105550.0,8.879e-05]
[1747615483111,1.24045969,105560.0,105550.0,8.879e-05]
[1747615483614,0.90671029,105560.0,105550.0,8.879e-05]
[1747615483821,0.63781029,105560.0,105550.0,8.879e-05]
[1747615484033,0.85451029,105560.0,105550.0,8.879e-05]
[1747615484413,0.84799374,105560.0,105550.0,8.879e-05]
[1747615486338,0.61119374,105560.0,105550.0,8.879e-05]
[1747615486569,0.84799374,105560.0,105550.0,8.879e-05]
[1747615489025,0.46997374,105560.0,105550.0,8.879e-05]
[1747615489580,0.43887374,105560.0,105550.0,8.879e-05]
[1747615490233,0.20207374,105560.0,105550.0,8.879e-05]
[1747615491068,0.23327374,105560.0,105550.0,8.879e-05]
[1747615491496,0.25537374,105560.0,105550.0,8.879e-05]
[1747615492212,0.20207374,105560.0,105550.0,0.00956297]
[1747615492430,0.20207374,105560.0,105550.0,8.879e-05]
[1747615492620,0.43883374,105560.0,105550.0,8.879e-05]
[1747615493258,0.87999334,105560.0,105550.0,8.879e-05]
[1747615493464,1.91839334,105560.0,105550.0,8.879e-05]
[1747615494131,1.92491569,105560.0,105550.0,8.879e-05]
[1747615496118,1.84956129,105560.0,105550.0,8.879e-05]
[1747615496315,1.61280129,105560.0,105550.0,8.879e-05]
[1747615496527,1.38712129,105560.0,105550.0,8.879e-05]
[1747615496719,1.17172549,105560.0,105550.0,8.879e-05]
[1747615496924,1.38712129,105560.0,105550.0,8.879e-05]
[1747615497558,1.38722129,105560.0,105550.0,8.879e-05]
[1747615498730,0.61157087,105530.0,105520.0,0.002]
[1747615498948,1.80519607,105530.0,105520.0,0.002]
[1747615499378,1.81171842,105530.0,105520.0,0.002]
[1747615500204,1.60032262,105530.0,105520.0,0.002]
[1747615500440,1.57987842,105530.0,105520.0,0.002]
[1747615500656,1.81567842,105530.0,105520.0,0.002]
[1747615500861,1.47567842,105530.0,105520.0,0.002]
[1747615501066,1.50224592,105530.0,105520.0,0.002]
[1747615501707,1.03452592,105530.0,105520.0,0.002]
[1747615501915,0.2085104,105510.0,105500.0,0.002]
[1747615502129,1.1397114,105510.0,105500.0,0.002]
[1747615502332,1.14623375,105510.0,105500.0,0.002]
[1747615502541,0.71544215,105510.0,105500.0,0.002]
[1747615502957,1.40247795,105510.0,105500.0,0.002]
[1747615503161,1.61801038,105510.0,105500.0,0.002]
[1747615503590,1.62001038,105510.0,105500.0,0.002]
[1747615503788,1.63001038,105510.0,105500.0,0.002]
[1747615504969,6.68101038,105510.0,105500.0,0.002]
[1747615505356,6.66801038,105510.0,105500.0,0.002]
[1747615505575,6.67801038,105510.0,105500.0,0.002]
[1747615506082,0.27234994,105490.0,105480.0,0.002]
[1747615506287,1.54973094,105490.0,105480.0,0.002]
[1747615506485,1.55973094,105490.0,105480.0,0.002]
[1747615506730,1.34433514,105490.0,105480.0,0.002]
[1747615506949,1.33433514,105490.0,105480.0,0.002]
[1747615507154,1.35085749,105490.0,105480.0,0.002]
[1747615507875,1.82245749,105490.0,105480.0,0.002]
[1747615508125,1.82345749,105490.0,105480.0,0.002]
[1747615508315,1.80793514,105490.0,105480.0,0.002]
[1747615508709,1.80807514,105490.0,105480.0,0.002]
[1747615509380,1.12103934,105490.0,105480.0,0.002]
[1747615509584,1.46803514,105490.0,105480.0,0.002]
[1747615511658,1.25263934,105490.0,105480.0,0.002]
[1747615511869,1.46803514,105490.0,105480.0,0.002]
[1747615512495,1.25263934,105490.0,105480.0,0.002]
[1747615512704,0.95327934,105490.0,105480.0,0.002]
[1747615512908,1.22139934,105490.0,105480.0,0.002]
[1747615513537,0.98587934,105490.0,105480.0,0.002]
[1747615513796,1.18879934,105490.0,105480.0,0.002]
[1747615514263,1.15304994,105490.0,105480.0,0.002]
[1747615514658,0.68152994,105490.0,105480.0,0.002]
[1747615514895,1.09144994,105490.0,105480.0,0.002]
[1747615515103,1.54270954,105490.0,105480.0,0.002]
[1747615515766,2.09810534,105490.0,105480.0,0.002]
[1747615515969,1.88270954,105490.0,105480.0,0.002]
[1747615516379,1.57187514,105490.0,105480.0,0.002]
[1747615516585,1.80731514,105490.0,105480.0,0.002]
[1747615519481,0.82718527,105470.0,105460.0,0.002]
[1747615519648,5.98449467,105470.0,105460.0,0.002]
[1747615519825,5.99449467,105470.0,105460.0,0.002]
[1747615520022,6.00332117,105470.0,105460.0,0.002]
[1747615520201,0.27232903,105450.0,105440.0,0.002]
[1747615520407,7.08131003,105450.0,105440.0,0.002]
[1747615520687,7.11129713,105450.0,105440.0,0.002]
[1747615520827,7.11143362,105450.0,105440.0,0.002]
[1747615521023,7.13994933,105450.0,105440.0,0.002]
[1747615521342,7.24372608,105450.0,105440.0,0.002]
[1747615521575,7.24372608,105450.0,105420.0,0.002]
[1747615521576,0.27046861,105430.0,105420.0,0.002]
[1747615521771,0.68281381,105430.0,105420.0,0.002]
[1747615521975,0.61316091,105430.0,105420.0,0.002]
[1747615522390,0.64167662,105430.0,105420.0,0.002]
[1747615522669,0.64167662,105430.0,105410.0,0.04]
[1747615522670,0.601003,105420.0,105410.0,0.04]
[1747615522822,6.72900681,105420.0,105410.0,0.04]
[1747615523023,6.73783331,105420.0,105410.0,0.03241264]
[1747615523438,6.74430209,105420.0,105410.0,0.02482528]
[1747615523639,6.26341641,105420.0,105400.0,0.002]
[1747615523873,6.19394048,105410.0,105400.0,0.002]
[1747615523990,1.14333912,105410.0,105400.0,0.002]
[1747615524222,0.54874781,105390.0,105380.0,0.002]
[1747615524524,6.65324785,105390.0,105380.0,0.002]
[1747615524957,6.28856002,105390.0,105380.0,0.002]
[1747615525187,6.27929362,105390.0,105380.0,0.002]
[1747615525409,7.00506141,105390.0,105380.0,0.002]
[1747615525640,0.72342539,105390.0,105380.0,0.002]
[1747615525859,1.97915322,105390.0,105380.0,0.002]
[1747615526067,1.49875322,105390.0,105380.0,0.002]
[1747615526270,1.97019322,105390.0,105380.0,0.002]
[1747615526485,7.19124037,105390.0,105380.0,0.002]
[1747615526704,6.7720917,105390.0,105380.0,0.002]
[1747615526970,0.97597526,105370.0,105360.0,0.002]
[1747615527175,1.12148724,105370.0,105360.0,0.002]
[1747615527388,0.60181644,105360.0,105350.0,0.00725149]
[1747615527620,1.58651875,105360.0,105350.0,0.00725149]
[1747615528035,1.58647875,105360.0,105350.0,0.00725149]
[1747615528264,1.53433367,105360.0,105350.0,0.00725149]
[1747615528690,1.53433367,105360.0,105350.0,0.00825149]
[1747615528887,0.69912584,105360.0,105350.0,0.00825149]
[1747615529103,0.76722584,105360.0,105350.0,0.01025149]
[1747615529313,0.29662584,105360.0,105350.0,0.01025149]
[1747615529539,0.76722584,105360.0,105350.0,0.01025149]
[1747615530821,1.13191367,105360.0,105350.0,0.01025149]
[1747615531031,0.76722584,105360.0,105350.0,0.01025149]
[1747615532325,1.46562584,105360.0,105350.0,0.01025149]
[1747615532941,0.99502584,105360.0,105350.0,0.01025149]
[1747615533172,1.06521367,105360.0,105350.0,0.01025149]
[1747615533422,1.53577367,105360.0,105350.0,0.01025149]
[1747615534109,1.563181,105360.0,105350.0,0.01025149]
[1747615534339,6.613181,105360.0,105350.0,0.00265884]
[1747615534582,6.73522815,105360.0,105350.0,0.00265884]
[1747615534800,0.31668043,105350.0,105340.0,0.002]
[1747615535023,5.82867766,105350.0,105340.0,0.002]
[1747615535265,0.20886673,105330.0,105320.0,0.002]
[1747615535516,1.18665613,105330.0,105320.0,0.002]
[1747615535761,0.71605613,105330.0,105320.0,0.002]
[1747615535981,1.1867999,105330.0,105320.0,0.002]
[1747615536196,0.01014377,105330.0,105320.0,0.22038098]
[1747615536401,0.69910429,105330.0,105320.0,0.23179223]
[1747615536602,0.69910429,105330.0,105320.0,0.27268674]
[1747615536830,0.69910429,105330.0,105320.0,0.002]
[1747615536831,0.76738656,105330.0,105320.0,0.002]
[1747615537089,0.68436174,105330.0,105320.0,0.004]
[1747615537731,0.21380174,105330.0,105320.0,0.004]
[1747615537973,0.68436174,105330.0,105320.0,0.004]
[1747615538196,0.68536174,105330.0,105320.0,0.007]
[1747615538452,0.78267114,105330.0,105320.0,0.007]
[1747615538668,0.78277114,105330.0,105320.0,0.007]
[1747615539113,0.80807013,105330.0,105320.0,0.007]
[1747615539596,2.27635796,105330.0,105320.0,0.007]
[1747615539907,1.65331236,105330.0,105320.0,0.007]
[1747615540143,0.20890639,105310.0,105300.0,0.002]
[1747615540348,0.41935253,105310.0,105300.0,0.002]
[1747615540558,6.29639476,105310.0,105300.0,0.002]
[1747615540773,1.19939476,105310.0,105300.0,0.002]
[1747615541003,1.22995253,105310.0,105300.0,0.002]
[1747615541212,1.57090261,105310.0,105300.0,0.002]
[1747615541429,1.57090261,105310.0,105280.0,0.00919149]
[1747615541430,0.58114607,105290.0,105280.0,0.00919149]
[1747615541665,1.08841547,105290.0,105280.0,0.00919149]
[1747615541876,1.18681547,105290.0,105280.0,0.00919149]
[1747615542085,0.95165547,105290.0,105280.0,0.00919149]
[1747615542340,1.08950607,105290.0,105280.0,0.00919149]
[1747615542556,0.43895451,105290.0,105280.0,0.20865948]
[1747615542768,1.11914733,105290.0,105280.0,0.00919149]
[1747615542976,1.09974976,105290.0,105280.0,0.27335938]
[1747615543187,0.67463766,105290.0,105280.0,0.28285749]
[1747615543385,0.42020369,105290.0,105280.0,0.29235551]
[1747615543607,0.64568369,105290.0,105280.0,0.7537036]
[1747615543843,0.64568369,105290.0,105280.0,0.7547036]
[1747615544274,0.64668369,105290.0,105280.0,0.7577036]
[1747615544678,0.64668369,105290.0,105280.0,0.7587036]
[1747615544886,0.41120369,105290.0,105280.0,0.7587036]
[1747615545085,0.41020369,105290.0,105280.0,0.7557036]
[1747615545289,0.00024369,105290.0,105280.0,0.7557036]
[1747615545496,0.2860465,105290.0,105280.0,0.01419149]
[1747615545847,0.29554416,105290.0,105280.0,0.20416109]
[1747615546051,0.29504173,105290.0,105280.0,0.21265938]
[1747615546284,0.10559305,105290.0,105280.0,0.22215749]
[1747615546426,0.22119021,105290.0,105280.0,0.04759149]
[1747615546622,0.22119021,105290.0,105280.0,0.06658826]
[1747615546825,0.60955662,105290.0,105280.0,0.01619149]
[1747615547029,0.43689282,105290.0,105280.0,0.02568997]
[1747615547431,0.43689282,105290.0,105280.0,0.01619149]
[1747615547628,0.45639012,105290.0,105280.0,0.21565938]
[1747615547837,0.45639012,105290.0,105280.0,0.24705938]
[1747615548040,0.45639012,105290.0,105280.0,0.29835533]
[1747615548041,0.26643784,105290.0,105280.0,0.29835533]
[1747615548244,0.01224369,105290.0,105280.0,0.29835533]
[1747615548465,0.02174063,105290.0,105280.0,0.29835533]
[1747615548670,0.00224369,105290.0,105280.0,0.75020558]
[1747615550552,0.23552,105310.0,105300.0,0.6341633]
[1747615550762,0.00949406,105320.0,105310.0,0.21840171]
[1747615550970,0.43163325,105330.0,105320.0,0.18989745]
[1747615551174,0.45062056,105330.0,105320.0,0.24918098]
[1747615551399,0.43163325,105330.0,105320.0,0.24918098]
[1747615551618,0.00949496,105310.0,105300.0,0.62466654]
[1747615551830,0.00949496,105310.0,105300.0,0.69157594]
[1747615552037,0.01899433,105290.0,105280.0,0.26244509]
[1747615552244,0.22892677,105300.0,105290.0,0.19992986]
[1747615552900,0.22892677,105300.0,105290.0,0.20942725]
[1747615553107,0.24648,105310.0,105300.0,0.20892641]
[1747615553310,0.01,105300.0,105290.0,0.32127642]
[1747615553515,0.02899217,105300.0,105290.0,0.35207642]
[1747615553906,0.24558,105310.0,105300.0,0.21842245]
[1747615554114,0.25507505,105310.0,105300.0,0.21842245]
[1747615554320,0.27406641,105310.0,105300.0,0.20892641]
[1747615554521,0.22892632,105300.0,105290.0,0.00248082]
[1747615554939,0.41189012,105300.0,105290.0,0.00248082]
[1747615555378,0.21892632,105300.0,105290.0,0.00448082]
[1747615555624,0.43490956,105300.0,105290.0,0.22292446]
[1747615555832,0.23548,105300.0,105290.0,0.37547165]
[1747615556037,0.25497595,105300.0,105290.0,0.43293756]
[1747615556249,0.0384883,105300.0,105290.0,0.39244044]
[1747615556451,0.04798479,105300.0,105290.0,0.40193738]
[1747615556660,0.0101,105310.0,105300.0,0.21842245]
[1747615556897,0.21900585,105310.0,105300.0,0.1994301]
[1747615557062,0.2195108,105310.0,105300.0,0.02646591]
[1747615557267,0.0284883,105300.0,105290.0,0.68327154]
[1747615557515,0.04748137,105300.0,105290.0,0.70226614]
[1747615557723,0.22791903,105300.0,105290.0,0.69726614]
[1747615557938,0.23791939,105300.0,105290.0,0.57591868]
[1747615558142,0.22892668,105300.0,105290.0,0.02697225]
[1747615558314,0.22892668,105300.0,105290.0,0.2264212]
[1747615559170,0.01,105300.0,105290.0,0.24541535]
[1747615559376,0.25425055,105310.0,105300.0,0.21842245]
[1747615559585,0.03858605,105310.0,105300.0,0.58340009]
[1747615559788,0.04808173,105310.0,105300.0,0.60989152]
[1747615559997,0.02909046,105310.0,105300.0,0.60989152]
[1747615560206,0.01959514,105310.0,105300.0,0.64279152]
[1747615560418,0.0001,105310.0,105300.0,1.12744177]
[1747615560625,0.0001,105310.0,105300.0,1.49341941]
[1747615560830,0.0001,105310.0,105300.0,1.49541941]
[1747615561458,0.0001,105310.0,105300.0,1.13044177]
[1747615561669,0.0001,105310.0,105300.0,1.49341941]
[1747615562091,0.0011,105310.0,105300.0,1.49641941]
[1747615562295,0.0011,105310.0,105300.0,1.49541941]
[1747615562725,0.21950144,105310.0,105300.0,0.17624168]
[1747615562938,0.02009019,105310.0,105300.0,0.38012328]
[1747615563154,0.22899658,105310.0,105300.0,0.32823093]
[1747615563366,0.02958551,105310.0,105300.0,0.74280092]
[1747615563578,0.0390811,105310.0,105300.0,0.72674177]
[1747615563979,0.02958551,105310.0,105300.0,0.77674177]
[1747615564398,0.0011,105310.0,105300.0,0.80674177]